[Event "SM-blixten 2025"]
[Site "Uppsala, Sweden"]
[Date "2025.07.03"]
[Round "1.4"]
[White "Pantzar, Milton"]
[Black "Malm, Simon 1995"]
[Result "1-0"]
[TimeControl "3 min + 2 sec increment starting from move 1"]
[WhiteTitle "IM"]
[WhiteElo "2444"]
[BlackElo "2007"]

1. d4 {[%clk 00:03:01]} {[%emt 00:00:03]} d5 {[%clk 00:03:04]} {[%emt
00:00:01]} 2. Nf3 {[%clk 00:03:00]} {[%emt 00:00:03]} Nf6 {[%clk 00:03:04]}
{[%emt 00:00:01]} 3. c4 {[%clk 00:02:57]} {[%emt 00:00:05]} c6 {[%clk
00:03:05]} {[%emt 00:00:01]} 4. g3 {[%clk 00:02:47]} {[%emt 00:00:13]} g6
{[%clk 00:03:06]} {[%emt 00:00:01]} 5. Bg2 {[%clk 00:02:46]} {[%emt 00:00:01]}
Bg7 {[%clk 00:03:07]} {[%emt 00:00:02]} 6. Qb3 {[%clk 00:02:37]} {[%emt
00:00:12]} O-O {[%clk 00:02:58]} {[%emt 00:00:11]} 7. Nc3 {[%clk 00:02:37]}
{[%emt 00:00:02]} Ne4 {[%clk 00:02:34]} {[%emt 00:00:25]} 8. O-O {[%clk
00:02:28]} {[%emt 00:00:11]} Nxc3 {[%clk 00:02:28]} {[%emt 00:00:08]} 9. bxc3
{[%clk 00:02:25]} {[%emt 00:00:05]} a5 {[%clk 00:02:11]} {[%emt 00:00:19]} 10.
a4 {[%clk 00:02:22]} {[%emt 00:00:05]} Re8 {[%clk 00:01:47]} {[%emt 00:00:26]}
11. Ne5 {[%clk 00:02:12]} {[%emt 00:00:12]} e6 {[%clk 00:01:41]} {[%emt
00:00:08]} 12. Ba3 {[%clk 00:01:55]} {[%emt 00:00:19]} Nd7 {[%clk 00:01:42]}
{[%emt 00:00:01]} 13. Nxd7 {[%clk 00:01:48]} {[%emt 00:00:09]} Qxd7 {[%clk
00:01:43]} {[%emt 00:00:02]} 14. Rab1 {[%clk 00:01:40]} {[%emt 00:00:09]} h5
{[%clk 00:01:34]} {[%emt 00:00:10]} 15. h4 {[%clk 00:01:38]} {[%emt 00:00:05]}
Qc7 {[%clk 00:01:30]} {[%emt 00:00:06]} 16. e3 {[%clk 00:01:38]} {[%emt
00:00:02]} Ra6 {[%clk 00:01:25]} {[%emt 00:00:08]} 17. Rb2 {[%clk 00:01:31]}
{[%emt 00:00:09]} Qd8 {[%clk 00:01:23]} {[%emt 00:00:03]} 18. Rfb1 {[%clk
00:01:29]} {[%emt 00:00:04]} Qf6 {[%clk 00:01:17]} {[%emt 00:00:08]} 19. Bd6
{[%clk 00:01:24]} {[%emt 00:00:07]} Qf5 {[%clk 00:01:10]} {[%emt 00:00:10]} 20.
c5 {[%clk 00:01:18]} {[%emt 00:00:08]} e5 {[%clk 00:01:05]} {[%emt 00:00:07]}
21. Qd1 {[%clk 00:01:08]} {[%emt 00:00:11]} Re6 {[%clk 00:00:54]} {[%emt
00:00:13]} 22. Qf1 {[%clk 00:00:55]} {[%emt 00:00:15]} Rxd6 {[%clk 00:00:32]}
{[%emt 00:00:25]} 23. cxd6 {[%clk 00:01:51]} {[%emt 00:00:38]} Qd7 {[%clk
00:00:27]} {[%emt 00:00:12]} 24. Bh3 {[%clk 00:00:37]} {[%emt 00:01:17]} f5
{[%clk 00:00:28]} 25. Qd3 {[%clk 00:00:27]} {[%emt 00:00:11]} Qxd6 {[%clk
00:00:28]} {[%emt 00:00:03]} 26. Bg2 {[%clk 00:00:28]} {[%emt 00:00:01]} Kh7
{[%clk 00:00:23]} {[%emt 00:00:07]} 27. Rb3 {[%clk 00:00:24]} {[%emt 00:00:05]}
Ra8 {[%clk 00:00:23]} {[%emt 00:00:02]} 28. dxe5 {[%clk 00:00:18]} {[%emt
00:00:08]} Bxe5 {[%clk 00:00:23]} {[%emt 00:00:02]} 29. c4 {[%clk 00:00:20]} f4
{[%clk 00:00:08]} {[%emt 00:00:18]} 30. exf4 {[%clk 00:00:18]} {[%emt
00:00:04]} Bf5 {[%clk 00:00:08]} {[%emt 00:00:02]} 31. fxe5 Qxe5 {[%clk
00:00:08]} 32. Rxb7+ {[%clk 00:00:17]} {[%emt 00:00:01]} Kh6 {[%clk 00:00:05]}
{[%emt 00:00:06]} 33. Qd2+ {[%clk 00:00:18]} {[%emt 00:00:01]} 1-0

[Event "SM-blixten 2025"]
[Site "Uppsala, Sweden"]
[Date "2025.07.03"]
[Round "2.10"]
[White "Gustafsson, Thomas"]
[Black "Ziegler, Ari"]
[Result "1/2-1/2"]
[TimeControl "3 min + 2 sec increment starting from move 1"]
[BlackTitle "IM"]
[WhiteElo "1963"]
[BlackElo "2297"]

1. d4 {[%clk 00:03:01]} {[%emt 00:00:01]} Nf6 {[%clk 00:03:03]} {[%emt
00:00:02]} 2. c4 {[%clk 00:03:00]} {[%emt 00:00:02]} e6 {[%clk 00:03:03]}
{[%emt 00:00:03]} 3. Nf3 {[%clk 00:02:57]} {[%emt 00:00:03]} d5 {[%clk
00:03:04]} {[%emt 00:00:02]} 4. e3 {[%clk 00:02:46]} {[%emt 00:00:13]} c5
{[%clk 00:03:04]} {[%emt 00:00:03]} 5. cxd5 {[%clk 00:02:37]} {[%emt 00:00:11]}
exd5 {[%clk 00:03:05]} {[%emt 00:00:02]} 6. Nc3 {[%clk 00:02:30]} {[%emt
00:00:07]} Nc6 {[%clk 00:03:03]} {[%emt 00:00:05]} 7. Be2 {[%clk 00:02:13]}
{[%emt 00:00:19]} cxd4 {[%clk 00:02:43]} {[%emt 00:00:23]} 8. Nxd4 {[%clk
00:02:10]} {[%emt 00:00:03]} Bd6 {[%clk 00:02:42]} {[%emt 00:00:04]} 9. O-O
{[%clk 00:01:52]} {[%emt 00:00:20]} O-O {[%clk 00:02:42]} {[%emt 00:00:02]} 10.
Ncb5 {[%clk 00:01:40]} {[%emt 00:00:14]} Bb8 {[%clk 00:02:28]} {[%emt
00:00:16]} 11. g3 {[%clk 00:01:32]} {[%emt 00:00:09]} Bh3 {[%clk 00:02:26]}
{[%emt 00:00:05]} 12. Re1 {[%clk 00:01:31]} {[%emt 00:00:03]} Qd7 {[%clk
00:02:27]} {[%emt 00:00:02]} 13. Bd2 {[%clk 00:01:19]} {[%emt 00:00:13]} Ne5
{[%clk 00:02:04]} {[%emt 00:00:25]} 14. f4 {[%clk 00:01:06]} {[%emt 00:00:15]}
Nc6 {[%clk 00:01:47]} {[%emt 00:00:20]} 15. Rc1 {[%clk 00:00:49]} {[%emt
00:00:18]} Re8 {[%clk 00:01:04]} {[%emt 00:00:45]} 16. Bf3 {[%clk 00:00:46]}
{[%emt 00:00:05]} a6 {[%clk 00:00:45]} {[%emt 00:00:22]} 17. Nc3 {[%clk
00:00:43]} {[%emt 00:00:04]} Ba7 {[%clk 00:00:43]} {[%emt 00:00:05]} 18. Nce2
{[%clk 00:00:36]} {[%emt 00:00:07]} Bg4 {[%clk 00:00:40]} {[%emt 00:00:07]} 19.
Kg2 {[%clk 00:00:35]} {[%emt 00:00:02]} Bxf3+ {[%clk 00:00:40]} {[%emt
00:00:03]} 20. Kxf3 {[%clk 00:00:33]} {[%emt 00:00:04]} Rac8 {[%clk 00:00:30]}
{[%emt 00:00:11]} 21. Nxc6 {[%clk 00:00:32]} {[%emt 00:00:03]} bxc6 {[%clk
00:00:31]} {[%emt 00:00:01]} 22. Nd4 {[%clk 00:00:33]} {[%emt 00:00:02]} c5
{[%clk 00:00:30]} {[%emt 00:00:03]} 23. Nb3 {[%clk 00:00:33]} {[%emt 00:00:01]}
d4 {[%clk 00:00:26]} {[%emt 00:00:06]} 24. e4 {[%clk 00:00:32]} {[%emt
00:00:02]} c4 {[%clk 00:00:26]} {[%emt 00:00:04]} 25. Na5 {[%clk 00:00:33]}
{[%emt 00:00:01]} Qg4+ {[%clk 00:00:20]} {[%emt 00:00:07]} 26. Kg2 {[%clk
00:00:32]} {[%emt 00:00:03]} Qxd1 {[%clk 00:00:19]} {[%emt 00:00:03]} 27. Rcxd1
{[%clk 00:00:32]} {[%emt 00:00:02]} c3 {[%clk 00:00:17]} {[%emt 00:00:04]} 28.
bxc3 {[%clk 00:00:32]} {[%emt 00:00:02]} dxc3 {[%clk 00:00:19]} {[%emt
00:00:01]} 29. Be3 {[%clk 00:00:33]} Bxe3 {[%clk 00:00:18]} {[%emt 00:00:03]}
30. Rxe3 {[%clk 00:00:34]} Rc5 {[%clk 00:00:17]} {[%emt 00:00:04]} 31. Nb3
{[%clk 00:00:34]} {[%emt 00:00:01]} Rc4 {[%clk 00:00:16]} {[%emt 00:00:03]} 32.
e5 {[%clk 00:00:35]} {[%emt 00:00:02]} Ng4 {[%clk 00:00:14]} {[%emt 00:00:04]}
33. Red3 {[%clk 00:00:35]} {[%emt 00:00:01]} h5 {[%clk 00:00:15]} 34. Rd8
{[%emt 00:00:02]} Rxd8 {[%emt 00:00:01]} 35. Rxd8+ {[%clk 00:00:36]} {[%emt
00:00:02]} Kh7 {[%clk 00:00:19]} 36. Rd7 {[%clk 00:00:36]} {[%emt 00:00:02]} c2
{[%clk 00:00:20]} {[%emt 00:00:01]} 37. Nc1 {[%clk 00:00:36]} {[%emt 00:00:01]}
Kg6 {[%clk 00:00:19]} {[%emt 00:00:04]} 38. h3 {[%clk 00:00:37]} Ne3+ {[%clk
00:00:20]} {[%emt 00:00:01]} 39. Kf3 {[%clk 00:00:37]} {[%emt 00:00:01]} Nd1
{[%clk 00:00:19]} {[%emt 00:00:03]} 40. Ke2 {[%clk 00:00:38]} Nb2 {[%clk
00:00:19]} {[%emt 00:00:02]} 41. Kd2 {[%clk 00:00:38]} {[%emt 00:00:02]} a5
{[%clk 00:00:16]} {[%emt 00:00:06]} 42. Rd6+ {[%clk 00:00:36]} {[%emt
00:00:03]} Kh7 {[%clk 00:00:16]} {[%emt 00:00:02]} 43. f5 {[%clk 00:00:36]}
{[%emt 00:00:02]} a4 {[%clk 00:00:18]} {[%emt 00:00:01]} 44. e6 {[%clk
00:00:36]} {[%emt 00:00:01]} fxe6 {[%clk 00:00:19]} 45. fxe6 {[%clk 00:00:37]}
{[%emt 00:00:02]} a3 {[%clk 00:00:19]} {[%emt 00:00:01]} 46. e7 {[%clk
00:00:37]} {[%emt 00:00:01]} Re4 {[%clk 00:00:21]} {[%emt 00:00:01]} 47. Rd7
{[%clk 00:00:36]} {[%emt 00:00:03]} Kg6 {[%clk 00:00:21]} {[%emt 00:00:02]} 48.
Kxc2 {[%clk 00:00:36]} {[%emt 00:00:01]} Nc4 {[%clk 00:00:19]} {[%emt
00:00:05]} 49. Nd3 {[%clk 00:00:35]} {[%emt 00:00:02]} Nb6 {[%clk 00:00:13]}
{[%emt 00:00:09]} 50. Rb7 {[%clk 00:00:35]} {[%emt 00:00:02]} Nd5 {[%clk
00:00:14]} {[%emt 00:00:02]} 51. Nf4+ {[%clk 00:00:34]} {[%emt 00:00:02]} Nxf4
{[%clk 00:00:14]} {[%emt 00:00:03]} 52. gxf4 {[%clk 00:00:35]} {[%emt
00:00:01]} Kf5 {[%clk 00:00:14]} {[%emt 00:00:02]} 53. Kb3 {[%clk 00:00:34]}
{[%emt 00:00:02]} 1/2-1/2

[Event "SM-blixten 2025"]
[Site "Uppsala, Sweden"]
[Date "2025.07.03"]
[Round "4.6"]
[White "Nilsson, Joakim"]
[Black "Nygren, Kim"]
[Result "0-1"]
[TimeControl "3 min + 2 sec increment starting from move 1"]
[WhiteTitle "FM"]
[BlackTitle "CM"]
[WhiteElo "2208"]
[BlackElo "2173"]

1. e4 {[%clk 00:03:02]} {[%emt 00:00:01]} c5 {[%clk 00:03:03]} {[%emt
00:00:02]} 2. Nf3 {[%clk 00:03:02]} {[%emt 00:00:01]} d6 {[%clk 00:03:03]}
{[%emt 00:00:02]} 3. Bb5+ {[%clk 00:02:58]} {[%emt 00:00:06]} Nd7 {[%clk
00:03:04]} {[%emt 00:00:02]} 4. d4 {[%clk 00:02:55]} {[%emt 00:00:04]} cxd4 5.
Qxd4 {[%clk 00:02:56]} Ngf6 {[%clk 00:02:48]} {[%emt 00:00:18]} 6. c4 {[%clk
00:02:53]} {[%emt 00:00:05]} g6 {[%clk 00:02:44]} {[%emt 00:00:06]} 7. Nc3
{[%clk 00:02:53]} {[%emt 00:00:01]} Bg7 {[%clk 00:02:45]} {[%emt 00:00:02]} 8.
O-O {[%clk 00:02:53]} {[%emt 00:00:02]} O-O {[%clk 00:02:43]} {[%emt 00:00:04]}
9. Bxd7 {[%clk 00:02:47]} {[%emt 00:00:08]} Nxd7 {[%clk 00:02:40]} {[%emt
00:00:04]} 10. Qd3 {[%clk 00:02:42]} {[%emt 00:00:07]} Nc5 {[%clk 00:02:39]}
{[%emt 00:00:04]} 11. Qe2 {[%clk 00:02:42]} {[%emt 00:00:01]} Bg4 {[%clk
00:02:36]} {[%emt 00:00:05]} 12. h3 {[%clk 00:02:40]} {[%emt 00:00:04]} Bxf3
{[%clk 00:02:20]} {[%emt 00:00:18]} 13. Qxf3 {[%clk 00:02:41]} {[%emt
00:00:01]} Bxc3 {[%clk 00:02:15]} {[%emt 00:00:06]} 14. bxc3 {[%clk 00:02:41]}
{[%emt 00:00:02]} Rc8 {[%clk 00:02:13]} {[%emt 00:00:04]} 15. Rb1 {[%clk
00:02:37]} {[%emt 00:00:06]} Qd7 {[%clk 00:02:12]} {[%emt 00:00:03]} 16. Rd1
{[%clk 00:02:28]} {[%emt 00:00:11]} Qe6 {[%clk 00:02:06]} {[%emt 00:00:08]} 17.
Rd4 {[%clk 00:02:26]} {[%emt 00:00:03]} f5 {[%clk 00:02:00]} {[%emt 00:00:09]}
18. exf5 {[%clk 00:02:17]} {[%emt 00:00:11]} Rxf5 {[%clk 00:02:01]} {[%emt
00:00:02]} 19. Qd1 {[%clk 00:02:14]} {[%emt 00:00:05]} Rcf8 {[%clk 00:01:43]}
{[%emt 00:00:20]} 20. Be3 {[%clk 00:02:15]} Re5 {[%clk 00:01:38]} {[%emt
00:00:06]} 21. Qd2 {[%clk 00:01:59]} {[%emt 00:00:18]} b6 {[%clk 00:01:16]}
{[%emt 00:00:25]} 22. Rf1 {[%clk 00:01:51]} {[%emt 00:00:08]} Ne4 {[%clk
00:01:14]} {[%emt 00:00:05]} 23. Qc2 {[%clk 00:01:52]} {[%emt 00:00:01]} Ng3
{[%clk 00:01:10]} {[%emt 00:00:07]} 24. Re1 {[%clk 00:01:50]} {[%emt 00:00:03]}
Nf5 {[%clk 00:01:07]} {[%emt 00:00:05]} 25. Rf4 {[%clk 00:01:36]} {[%emt
00:00:15]} Nxe3 {[%clk 00:01:01]} {[%emt 00:00:09]} 26. Rxf8+ {[%clk 00:01:34]}
{[%emt 00:00:04]} Kxf8 {[%clk 00:01:02]} {[%emt 00:00:01]} 27. fxe3 {[%clk
00:01:35]} {[%emt 00:00:01]} Qxc4 {[%clk 00:00:57]} {[%emt 00:00:07]} 28. e4
{[%clk 00:01:37]} Kg7 {[%clk 00:00:46]} {[%emt 00:00:12]} 29. Kh2 {[%clk
00:01:21]} {[%emt 00:00:18]} d5 {[%clk 00:00:41]} {[%emt 00:00:07]} 30. Qf2
{[%clk 00:01:12]} {[%emt 00:00:11]} dxe4 {[%clk 00:00:34]} {[%emt 00:00:10]} 31.
Qf4 {[%clk 00:01:02]} {[%emt 00:00:11]} Qe6 {[%clk 00:00:17]} {[%emt 00:00:20]}
32. Re3 {[%clk 00:01:00]} {[%emt 00:00:03]} Qf5 {[%clk 00:00:15]} {[%emt
00:00:04]} 33. Qh4 {[%clk 00:01:01]} {[%emt 00:00:02]} g5 {[%clk 00:00:14]}
{[%emt 00:00:02]} 34. Rg3 {[%clk 00:01:01]} {[%emt 00:00:03]} h6 {[%clk
00:00:14]} {[%emt 00:00:02]} 35. Qh5 {[%clk 00:00:59]} {[%emt 00:00:04]} e3
{[%clk 00:00:12]} {[%emt 00:00:03]} 36. Qe2 {[%clk 00:00:59]} {[%emt 00:00:02]}
Qf4 {[%clk 00:00:12]} {[%emt 00:00:02]} 37. Qe1 {[%clk 00:00:58]} {[%emt
00:00:04]} h5 {[%clk 00:00:13]} {[%emt 00:00:01]} 38. Kh1 {[%clk 00:00:59]} Qf2
{[%clk 00:00:10]} {[%emt 00:00:04]} 39. Rxe3 {[%clk 00:00:29]} {[%emt
00:00:33]} Qxe1+ {[%clk 00:00:10]} {[%emt 00:00:02]} 0-1

[Event "SM-blixten 2025"]
[Site "Uppsala, Sweden"]
[Date "2025.07.03"]
[Round "6.2"]
[White "Carlsson, Ludvig"]
[Black "Religa, Marek"]
[Result "1/2-1/2"]
[TimeControl "3 min + 2 sec increment starting from move 1"]
[WhiteTitle "IM"]
[WhiteElo "2386"]
[BlackElo "2227"]

1. e4 {[%clk 00:03:03]} c5 {[%clk 00:03:03]} {[%emt 00:00:02]} 2. Nf3 {[%clk
00:03:04]} {[%emt 00:00:01]} Nf6 {[%clk 00:03:05]} 3. Nc3 {[%clk 00:03:04]}
{[%emt 00:00:01]} e6 {[%clk 00:03:06]} {[%emt 00:00:01]} 4. d4 {[%clk
00:03:04]} {[%emt 00:00:02]} cxd4 {[%clk 00:03:07]} 5. Nxd4 {[%clk 00:03:05]}
{[%emt 00:00:02]} Nc6 {[%clk 00:03:09]} 6. Qd3 {[%clk 00:03:05]} d5 {[%clk
00:03:08]} {[%emt 00:00:03]} 7. exd5 {[%clk 00:03:01]} {[%emt 00:00:06]} Nb4
{[%clk 00:03:08]} {[%emt 00:00:02]} 8. Qf3 {[%clk 00:02:43]} {[%emt 00:00:20]}
Nbxd5 {[%clk 00:03:05]} {[%emt 00:00:05]} 9. Bd2 {[%clk 00:02:36]} {[%emt
00:00:08]} Bc5 {[%clk 00:03:02]} {[%emt 00:00:06]} 10. Nb3 {[%clk 00:02:30]}
{[%emt 00:00:08]} Be7 {[%clk 00:02:54]} {[%emt 00:00:10]} 11. a3 {[%clk
00:02:28]} {[%emt 00:00:04]} O-O {[%clk 00:02:53]} {[%emt 00:00:04]} 12. Bd3
{[%clk 00:02:29]} {[%emt 00:00:01]} Nxc3 {[%clk 00:02:45]} {[%emt 00:00:10]} 13.
Bxc3 {[%clk 00:02:29]} {[%emt 00:00:01]} Nd5 {[%clk 00:02:46]} {[%emt
00:00:02]} 14. Bd4 {[%clk 00:02:22]} {[%emt 00:00:08]} Bf6 {[%clk 00:02:47]}
{[%emt 00:00:01]} 15. O-O-O {[%clk 00:02:15]} {[%emt 00:00:09]} Bxd4 16. Nxd4
{[%clk 00:02:15]} Qf6 {[%clk 00:02:15]} {[%emt 00:00:09]} 17. Be4 {[%clk
00:02:16]} {[%emt 00:00:01]} Rd8 {[%clk 00:02:06]} {[%emt 00:00:11]} 18. Qxf6
{[%clk 00:02:12]} {[%emt 00:00:06]} Nxf6 {[%clk 00:02:02]} {[%emt 00:00:07]} 19.
Nb5 {[%clk 00:02:05]} {[%emt 00:00:08]} Bd7 {[%clk 00:01:44]} {[%emt 00:00:21]}
20. Nd6 {[%clk 00:02:05]} {[%emt 00:00:01]} Nxe4 {[%clk 00:01:37]} {[%emt
00:00:09]} 21. Nxe4 {[%emt 00:00:01]} Bc6 22. f3 {[%clk 00:02:07]} {[%emt
00:00:01]} Bxe4 {[%clk 00:01:24]} {[%emt 00:00:16]} 23. fxe4 {[%clk 00:02:08]}
{[%emt 00:00:02]} Kf8 {[%clk 00:01:22]} {[%emt 00:00:03]} 24. c3 {[%clk
00:02:00]} {[%emt 00:00:10]} Ke7 {[%clk 00:01:23]} {[%emt 00:00:02]} 25. Kc2
{[%clk 00:02:00]} {[%emt 00:00:01]} h5 {[%clk 00:01:16]} {[%emt 00:00:09]} 26.
a4 {[%clk 00:02:00]} {[%emt 00:00:03]} a5 {[%clk 00:01:17]} 27. Rhf1 {[%clk
00:01:58]} {[%emt 00:00:03]} Rac8 {[%clk 00:01:08]} {[%emt 00:00:11]} 28. b3
{[%clk 00:01:55]} {[%emt 00:00:05]} f6 {[%clk 00:01:05]} {[%emt 00:00:06]} 29.
h3 {[%clk 00:01:55]} {[%emt 00:00:01]} h4 {[%clk 00:01:03]} {[%emt 00:00:05]}
30. Rb1 {[%clk 00:01:36]} {[%emt 00:00:20]} Rd7 {[%clk 00:00:56]} {[%emt
00:00:10]} 31. Rfd1 {[%clk 00:01:37]} Rxd1 32. Rxd1 {[%clk 00:01:38]} b6 {[%clk
00:00:52]} {[%emt 00:00:04]} 33. Rd4 {[%clk 00:01:38]} {[%emt 00:00:01]} Rc6
{[%clk 00:00:46]} {[%emt 00:00:08]} 34. e5 {[%clk 00:01:36]} {[%emt 00:00:05]}
g5 {[%clk 00:00:43]} {[%emt 00:00:04]} 35. exf6+ {[%clk 00:01:35]} {[%emt
00:00:03]} Kxf6 {[%emt 00:00:01]} 36. Kd3 {[%clk 00:01:36]} Ke5 {[%clk
00:00:38]} {[%emt 00:00:08]} 37. Rd8 {[%clk 00:01:32]} {[%emt 00:00:06]} Kf4
{[%clk 00:00:32]} {[%emt 00:00:08]} 38. Rd4+ {[%clk 00:01:33]} {[%emt
00:00:02]} Ke5 {[%clk 00:00:29]} {[%emt 00:00:04]} 39. b4 {[%clk 00:01:34]}
{[%emt 00:00:01]} axb4 {[%clk 00:00:21]} {[%emt 00:00:10]} 40. cxb4 {[%clk
00:01:33]} {[%emt 00:00:03]} Rc1 {[%clk 00:00:20]} {[%emt 00:00:03]} 41. Rg4
{[%clk 00:01:33]} {[%emt 00:00:01]} Kf5 {[%clk 00:00:19]} {[%emt 00:00:04]} 42.
Kd4 {[%clk 00:01:22]} {[%emt 00:00:13]} Ra1 {[%clk 00:00:20]} {[%emt 00:00:02]}
43. Kc4 {[%clk 00:01:23]} {[%emt 00:00:01]} Rxa4 {[%clk 00:00:17]} {[%emt
00:00:05]} 44. Kb5 {[%clk 00:01:24]} Ra2 {[%clk 00:00:16]} {[%emt 00:00:03]} 45.
Kxb6 {[%clk 00:01:25]} {[%emt 00:00:02]} e5 {[%clk 00:00:17]} 46. Kc5 {[%clk
00:01:26]} e4 {[%clk 00:00:17]} {[%emt 00:00:03]} 47. Kd4 {[%clk 00:01:22]}
{[%emt 00:00:06]} Rd2+ {[%clk 00:00:18]} {[%emt 00:00:01]} 48. Ke3 {[%clk
00:01:19]} {[%emt 00:00:04]} Rd3+ {[%clk 00:00:19]} {[%emt 00:00:02]} 49. Ke2
{[%clk 00:01:19]} {[%emt 00:00:01]} Rb3 {[%clk 00:00:20]} 50. Kf2 {[%clk
00:01:14]} {[%emt 00:00:07]} Rb2+ {[%clk 00:00:22]} {[%emt 00:00:01]} 51. Ke3
{[%clk 00:01:15]} {[%emt 00:00:01]} Rb3+ {[%clk 00:00:23]} 52. Ke2 {[%clk
00:01:15]} {[%emt 00:00:02]} Rxb4 {[%clk 00:00:23]} {[%emt 00:00:02]} 53. Ke3
{[%clk 00:01:11]} {[%emt 00:00:06]} Rb3+ {[%clk 00:00:23]} {[%emt 00:00:02]} 54.
Ke2 {[%clk 00:01:12]} {[%emt 00:00:01]} Rg3 {[%clk 00:00:13]} {[%emt 00:00:13]}
55. Rxg3 {[%clk 00:01:12]} {[%emt 00:00:01]} hxg3 {[%clk 00:00:14]} {[%emt
00:00:02]} 56. Kd2 {[%clk 00:01:09]} {[%emt 00:00:04]} Ke5 {[%clk 00:00:12]}
{[%emt 00:00:04]} 57. Ke3 {[%clk 00:01:09]} {[%emt 00:00:03]} Kd5 {[%clk
00:00:13]} 58. Ke2 {[%clk 00:01:02]} {[%emt 00:00:10]} Kd4 {[%clk 00:00:14]}
{[%emt 00:00:01]} 59. Kd2 {[%clk 00:01:03]} {[%emt 00:00:01]} e3+ {[%clk
00:00:14]} {[%emt 00:00:02]} 60. Ke2 {[%clk 00:01:04]} {[%emt 00:00:01]} Ke4
{[%clk 00:00:15]} {[%emt 00:00:01]} 61. Ke1 {[%clk 00:01:05]} Kd3 {[%clk
00:00:11]} {[%emt 00:00:06]} 62. Kd1 {[%clk 00:01:06]} Kd4 {[%clk 00:00:12]}
{[%emt 00:00:01]} 63. Ke2 {[%clk 00:01:07]} {[%emt 00:00:01]} Ke4 {[%clk
00:00:10]} {[%emt 00:00:04]} 64. Ke1 {[%clk 00:01:08]} Kd3 {[%clk 00:00:06]}
{[%emt 00:00:07]} 65. Kd1 {[%clk 00:01:08]} {[%emt 00:00:01]} e2+ {[%clk
00:00:06]} {[%emt 00:00:02]} 66. Ke1 {[%clk 00:01:09]} Ke3 {[%clk 00:00:07]}
{[%emt 00:00:02]} 67. h4 {[%clk 00:01:11]} gxh4 {[%clk 00:00:08]} {[%emt
00:00:01]} 1/2-1/2